[Event "WYCC U18 Open 2019"]
[Site "Mumbai"]
[Date "2019.10.12"]
[Round "11.2"]
[White "Arjun Kalyan"]
[Black "Sargsyan, Shant"]
[Result "1/2-1/2"]
[ECO "B12"]
[WhiteElo "2483"]
[BlackElo "2580"]
[Annotator "ChessBase"]
[PlyCount "50"]
[EventDate "2019.10.02"]
[EventType "swiss"]
[EventCountry "IND"]
[SourceTitle "playchess.com"]
[Source "ChessBase"]
[SourceQuality "1"]
[TimeControl "40/5400+30:1800+30"]

1. e4 {[%emt 0:00:00]} c6 2. d4 {[%emt 0:00:00]} d5 {[%emt 0:04:52]} 3. e5 {[%emt 0:00:03]} Bf5 {[%emt 0:00:37]} 4. h4 {[%emt 0:00:25]} h5 {[%emt 0:00:36]} 5. Bd3 {[%emt 0:00:22]} Bxd3 {[%emt 0:00:09]} 6. Qxd3 {[%emt 0:00:06]} e6 {[%emt 0:00:08]} 7. Bg5 {[%emt 0:00:16]} Be7 {[%emt 0:01:04]} 8. Nf3 {[%emt 0:00:32]} Nh6 {[%emt 0:00:45]} 9. Bxh6 {[%emt 0:00:18]} Rxh6 {[%emt 0:00:20]} 10. Nbd2 {[%emt 0:00:13]} Nd7 {[%emt 0:03:21]} 11. g3 {[%emt 0:01:29]} Qb6 {[%emt 0:03:16]} 12. O-O {[%emt 0:00:38]} Rg6 {[%emt 0:04:34]} 13. c3 {[%emt 0:05:03]} c5 {[%emt 0:08:46]} 14. b4 {[%emt 0:13:07]} cxd4 {[%emt 0:02:57]} 15. cxd4 {[%emt 0:00:07]} Bxb4 {[%emt 0:18:08]} 16. Rab1 {[%emt 0:09:51]} Qa5 {[%emt 0:00:41]} 17. Rfc1 {[%emt 0:00:53]} Rb8 {[%emt 0:06:35]} 18. Nb3 {[%emt 0:08:08]} Qd8 {[%emt 0:00:40]} 19. Rc2 {[%emt 0:18:17]} Be7 {[%emt 0:01:20]} 20. Rbc1 {[%emt 0:05:51]} Ba3 {[%emt 0:01:04]} 21. Rb1 {[%emt 0:00:14]} Be7 {[%emt 0:00:12]} 22. Rbc1 {[%emt 0:02:31]} Ba3 {[%emt 0:03:29]} 23. Rb1 {[%emt 0:01:41]} Be7 {[%emt 0:00:36]} 24. Rbc1 {[%emt 0:00:12]} Ba3 {[%emt 0:00:10]} 25. Rb1 {[%emt 0:00:10]} Be7 {[%emt 0:00:12]} 1/2-1/2

[Event "WYCC U18 Open 2019"]
[Site "Mumbai"]
[Date "2019.10.12"]
[Round "11.3"]
[White "Davtyan, Artur"]
[Black "Gholami, Aryan"]
[Result "1-0"]
[ECO "E16"]
[WhiteElo "2418"]
[BlackElo "2554"]
[Annotator "ChessBase"]
[PlyCount "95"]
[EventDate "2019.10.02"]
[EventType "swiss"]
[EventCountry "IND"]
[SourceTitle "playchess.com"]
[Source "ChessBase"]
[SourceQuality "1"]
[TimeControl "40/5400+30:1800+30"]

1. d4 {[%emt 0:00:00]} Nf6 {[%emt 0:00:00]} 2. c4 {[%emt 0:00:29]} e6 {[%emt 0:00:10]} 3. Nf3 {[%emt 0:00:04]} Bb4+ {[%emt 0:01:10]} 4. Bd2 {[%emt 0:02:32]} Qe7 {[%emt 0:00:25]} 5. g3 {[%emt 0:03:19]} Nc6 {[%emt 0:00:18]} 6. e3 {[%emt 0:05:54]} Bxd2+ {[%emt 0:07:17]} 7. Qxd2 {[%emt 0:00:27]} d6 {[%emt 0:07:27]} 8. Nc3 {[%emt 0:11:10]} e5 {[%emt 0:03:00]} 9. Bg2 {[%emt 0:11:18]} e4 {[%emt 0:01:47]} 10. Ng1 {[%emt 0:03:55]} d5 {[%emt 0:08:21]} 11. Nxd5 {[%emt 0:03:08]} Nxd5 {[%emt 0:00:07]} 12. cxd5 {[%emt 0:00:01]} Nb4 {[%emt 0:00:11]} 13. d6 {[%emt 0:00:19]} Qxd6 {[%emt 0:01:32]} 14. Bxe4 {[%emt 0:02:00]} Qe6 {[%emt 0:01:46]} 15. Bg2 {[%emt 0:04:17]} Qc4 {[%emt 0:00:30]} 16. b3 {[%emt 0:04:21]} Qb5 {[%emt 0:00:32]} 17. Ne2 {[%emt 0:01:02]} Nd3+ {[%emt 0:01:26]} 18. Kf1 {[%emt 0:00:54]} Bf5 {[%emt 0:00:07]} 19. e4 {[%emt 0:04:19]} Bg6 {[%emt 0:00:08]} 20. Kg1 {[%emt 0:13:05]} O-O-O {[%emt 0:02:42]} 21. Rd1 {[%emt 0:05:08]} Nb4 {[%emt 0:04:16]} 22. Nc3 {[%emt 0:00:01]} Qb6 {[%emt 0:04:09]} 23. h3 {[%emt 0:03:00]} f5 {[%emt 0:02:16]} 24. Na4 {[%emt 0:04:36]} Qb5 {[%emt 0:01:20]} 25. e5 {[%emt 0:01:08]} Nc6 {[%emt 0:00:41]} 26. Qe3 {[%emt 0:00:33]} f4 {[%emt 0:03:50]} 27. gxf4 {[%emt 0:00:24]} Nb4 {[%emt 0:00:20]} 28. Nc3 {[%emt 0:00:52]} Qa5 {[%emt 0:00:10]} 29. d5 {[%emt 0:00:50]} Rhf8 {[%emt 0:01:09]} 30. Kh2 {[%emt 0:03:15]} Nc2 {[%emt 0:00:22]} 31. Qd2 {[%emt 0:00:52]} Nb4 {[%emt 0:00:51]} 32. Na4 {[%emt 0:01:50]} Qb5 {[%emt 0:00:28]} 33. Qd4 {[%emt 0:01:04]} Kb8 {[%emt 0:02:22]} 34. Nc3 {[%emt 0:00:14]} Qa5 {[%emt 0:00:05]} 35. Na4 {[%emt 0:07:08]} Nxd5 {[%emt 0:06:08]} 36. Bxd5 {[%emt 0:00:26]} c6 {[%emt 0:00:04]} 37. Qc5 {[%emt 0:01:14]} Qxc5 {[%emt 0:00:30]} 38. Nxc5 {[%emt 0:00:02]} cxd5 {[%emt 0:00:07]} 39. Ne6 {[%emt 0:00:04]} Be4 {[%emt 0:00:14]} 40. Rhf1 {[%emt 0:01:27]} Rfe8 {[%emt 0:00:31]} 41. Nxd8 {[%emt 0:30:09]} Rxd8 {[%emt 0:30:10]} 42. Rd4 {[%emt 0:00:16]} g6 {[%emt 0:01:23]} 43. Rfd1 {[%emt 0:00:47]} Rf8 {[%emt 0:00:18]} 44. Kg3 {[%emt 0:00:02]} Rc8 {[%emt 0:00:29]} 45. f3 {[%emt 0:00:34]} Rc3 {[%emt 0:00:08]} 46. Rxe4 {[%emt 0:01:11]} dxe4 {[%emt 0:00:07]} 47. e6 {[%emt 0:00:04]} Rxf3+ {[%emt 0:01:53]} 48. Kg2 {[%emt 0:00:50]} 1-0

[Event "WYCC U18 Open 2019"]
[Site "Mumbai"]
[Date "2019.10.12"]
[Round "11.4"]
[White "Gazik, Viktor"]
[Black "Wang, Shixu B"]
[Result "0-1"]
[ECO "C24"]
[WhiteElo "2546"]
[BlackElo "2370"]
[Annotator "ChessBase"]
[PlyCount "106"]
[EventDate "2019.10.02"]
[EventType "swiss"]
[EventCountry "IND"]
[SourceTitle "playchess.com"]
[Source "ChessBase"]
[SourceQuality "1"]
[TimeControl "40/5400+30:1800+30"]

1. e4 {[%emt 0:00:47]} e5 {[%emt 0:00:00]} 2. Bc4 {[%emt 0:02:51]} Nf6 {[%emt 0:00:58]} 3. d3 {[%emt 0:00:07]} c6 {[%emt 0:01:50]} 4. Nf3 {[%emt 0:04:25]} d5 {[%emt 0:04:17]} 5. Bb3 {[%emt 0:01:46]} Bd6 {[%emt 0:03:09]} 6. Nc3 {[%emt 0:10:39]} dxe4 {[%emt 0:10:14]} 7. dxe4 {[%emt 0:01:50]} O-O {[%emt 0:00:52]} 8. O-O {[%emt 0:04:03]} Na6 {[%emt 0:00:18]} 9. Nh4 {[%emt 0:08:13]} Nc5 {[%emt 0:04:09]} 10. Qf3 {[%emt 0:03:14]} a5 {[%emt 0:09:55]} 11. Be3 {[%emt 0:17:47]} Ng4 {[%emt 0:06:44]} 12. g3 {[%emt 0:04:14]} Nxe3 {[%emt 0:01:42]} 13. Qxe3 {[%emt 0:00:15]} a4 {[%emt 0:01:44]} 14. Bc4 {[%emt 0:00:18]} b5 {[%emt 0:00:30]} 15. Be2 {[%emt 0:00:13]} Ne6 {[%emt 0:01:47]} 16. Bd3 {[%emt 0:05:13]} Bc5 {[%emt 0:01:11]} 17. Qd2 {[%emt 0:01:19]} Ng5 {[%emt 0:03:54]} 18. Qe2 {[%emt 0:04:08]} a3 {[%emt 0:00:52]} 19. Rad1 {[%emt 0:05:28]} Nh3+ {[%emt 0:04:41]} 20. Kh1 {[%emt 0:00:23]} axb2 {[%emt 0:02:12]} 21. Nf5 {[%emt 0:01:46]} Qg5 {[%emt 0:03:55]} 22. f4 {[%emt 0:02:43]} exf4 {[%emt 0:01:46]} 23. Qg2 {[%emt 0:01:42]} Nf2+ {[%emt 0:06:13]} 24. Rxf2 {[%emt 0:00:45]} Bxf2 {[%emt 0:00:06]} 25. Qxf2 {[%emt 0:00:20]} fxg3 {[%emt 0:00:28]} 26. Nxg3 {[%emt 0:09:28]} b4 {[%emt 0:00:35]} 27. Nb1 {[%emt 0:01:06]} Rxa2 {[%emt 0:03:41]} 28. c3 {[%emt 0:03:32]} Rd8 {[%emt 0:05:22]} 29. cxb4 {[%emt 0:02:04]} Be6 {[%emt 0:01:43]} 30. Ne2 {[%emt 0:03:37]} Qf6 {[%emt 0:03:02]} 31. Qxf6 {[%emt 0:00:27]} gxf6 {[%emt 0:00:01]} 32. Nec3 {[%emt 0:00:07]} Ra1 {[%emt 0:00:36]} 33. Rg1+ {[%emt 0:01:08]} Kf8 {[%emt 0:00:04]} 34. Bc2 {[%emt 0:00:04]} Ke7 {[%emt 0:10:44]} 35. Kg2 {[%emt 0:00:21]} Rd4 {[%emt 0:00:59]} 36. Kf2 {[%emt 0:00:58]} Rxb4 {[%emt 0:00:16]} 37. Ke3 {[%emt 0:00:06]} Ra5 {[%emt 0:00:12]} 38. Rg2 {[%emt 0:00:49]} Rh5 {[%emt 0:00:12]} 39. Ba4 {[%emt 0:00:42]} Rh3+ {[%emt 0:00:37]} 40. Rg3 {[%emt 0:00:10]} Rxh2 {[%emt 0:01:39]} 41. Bxc6 {[%emt 0:30:06]} h5 {[%emt 0:30:53]} 42. Bd5 {[%emt 0:00:00]} Rh3 {[%emt 0:00:00]} 43. Kf4 {[%emt 0:00:00]} Rxg3 {[%emt 0:00:00]} 44. Kxg3 {[%emt 0:00:00]} Kd6 {[%emt 0:00:00]} 45. Bxe6 {[%emt 0:00:00]} fxe6 46. Kh4 {[%emt 0:00:00]} f5 {[%emt 0:00:00]} 47. Kxh5 {[%emt 0:00:00]} fxe4 {[%emt 0:00:00]} 48. Kg4 {[%emt 0:00:00]} Ke5 {[%emt 0:00:00]} 49. Ne2 {[%emt 0:00:00]} Rb3 {[%emt 0:00:00]} 50. Nf4 {[%emt 0:00:00]} Rf3 {[%emt 0:00:00]} 51. Ne2 {[%emt 0:00:00]} Rf2 {[%emt 0:00:00]} 52. Nec3 {[%emt 0:00:00]} Kd4 {[%emt 0:00:00]} 53. Kg3 {[%emt 0:00:00]} Rf3+ {[%emt 0:00:00]} 0-1

[Event "WYCC U18 Open 2019"]
[Site "Mumbai"]
[Date "2019.10.12"]
[Round "11.5"]
[White "Iniyan, P."]
[Black "Zarubitski, Viachaslau"]
[Result "1/2-1/2"]
[ECO "D18"]
[WhiteElo "2509"]
[BlackElo "2435"]
[Annotator "ChessBase"]
[PlyCount "61"]
[EventDate "2019.10.02"]
[EventType "swiss"]
[EventCountry "IND"]
[SourceTitle "playchess.com"]
[Source "ChessBase"]
[SourceQuality "1"]
[TimeControl "40/5400+30:1800+30"]

1. d4 {[%emt 0:00:00]} d5 {[%emt 0:00:00]} 2. c4 {[%emt 0:00:00]} c6 {[%emt 0:00:00]} 3. Nf3 {[%emt 0:00:00]} Nf6 {[%emt 0:00:00]} 4. Nc3 {[%emt 0:00:06]} dxc4 {[%emt 0:00:00]} 5. a4 {[%emt 0:00:04]} Bf5 {[%emt 0:00:00]} 6. e3 {[%emt 0:00:07]} e6 {[%emt 0:00:00]} 7. Bxc4 {[%emt 0:00:06]} Bb4 {[%emt 0:00:00]} 8. O-O {[%emt 0:00:09]} Nbd7 {[%emt 0:00:00]} 9. Qe2 {[%emt 0:00:07]} O-O {[%emt 0:00:14]} 10. e4 {[%emt 0:00:05]} Bg6 {[%emt 0:00:02]} 11. Bd3 {[%emt 0:00:06]} Bh5 {[%emt 0:00:10]} 12. e5 {[%emt 0:00:04]} Nd5 {[%emt 0:00:04]} 13. Nxd5 {[%emt 0:00:06]} cxd5 {[%emt 0:00:24]} 14. Qe3 {[%emt 0:00:06]} Bg6 {[%emt 0:05:27]} 15. Ng5 {[%emt 0:08:13]} Re8 {[%emt 0:01:25]} 16. f4 {[%emt 0:03:11]} Nf8 {[%emt 0:01:49]} 17. g4 {[%emt 0:23:59]} Bxd3 {[%emt 0:19:58]} 18. Qxd3 {[%emt 0:00:02]} Rc8 {[%emt 0:00:23]} 19. Be3 {[%emt 0:12:51]} Be7 {[%emt 0:04:15]} 20. Nf3 {[%emt 0:00:11]} Qc7 {[%emt 0:00:16]} 21. Rfc1 {[%emt 0:15:49]} Qd7 {[%emt 0:01:27]} 22. Qb5 {[%emt 0:04:49]} Rxc1+ {[%emt 0:00:59]} 23. Rxc1 {[%emt 0:00:06]} Rc8 {[%emt 0:00:02]} 24. Qxd7 {[%emt 0:02:51]} Rxc1+ {[%emt 0:00:03]} 25. Bxc1 {[%emt 0:00:06]} Nxd7 {[%emt 0:00:01]} 26. Bd2 {[%emt 0:00:09]} a6 {[%emt 0:01:39]} 27. Kf2 {[%emt 0:00:14]} Nb8 {[%emt 0:00:35]} 28. Ke3 {[%emt 0:00:08]} Nc6 {[%emt 0:00:02]} 29. Ne1 {[%emt 0:00:34]} Kf8 {[%emt 0:01:05]} 30. Nc2 {[%emt 0:00:26]} Ke8 {[%emt 0:00:23]} 31. Kd3 {[%emt 0:00:17]} 1/2-1/2

[Event "WYCC U18 Open 2019"]
[Site "Mumbai"]
[Date "2019.10.12"]
[Round "11.6"]
[White "Rahul Srivatshav P"]
[Black "Mitrabha, Guha"]
[Result "1-0"]
[ECO "E32"]
[WhiteElo "2460"]
[BlackElo "2434"]
[Annotator "ChessBase"]
[PlyCount "51"]
[EventDate "2019.10.02"]
[EventType "swiss"]
[EventCountry "IND"]
[SourceTitle "playchess.com"]
[Source "ChessBase"]
[SourceQuality "1"]
[TimeControl "40/5400+30:1800+30"]

1. d4 {[%emt 0:00:00]} Nf6 {[%emt 0:04:09]} 2. c4 {[%emt 0:00:00]} e6 {[%emt 0:00:06]} 3. Nc3 {[%emt 0:00:00]} Bb4 {[%emt 0:00:10]} 4. Qc2 {[%emt 0:00:00]} O-O {[%emt 0:00:17]} 5. Nf3 {[%emt 0:00:00]} c5 {[%emt 0:00:14]} 6. dxc5 {[%emt 0:00:00]} Na6 {[%emt 0:00:14]} 7. g3 {[%emt 0:00:00]} Nxc5 {[%emt 0:00:28]} 8. Bg2 {[%emt 0:00:03]} b6 {[%emt 0:01:17]} 9. O-O {[%emt 0:00:06]} Bb7 {[%emt 0:01:24]} 10. Nb5 {[%emt 0:00:09]} Nce4 {[%emt 0:06:30]} 11. Ng5 {[%emt 0:00:06]} d5 {[%emt 0:00:06]} 12. Nxe4 {[%emt 0:00:03]} Nxe4 {[%emt 0:01:04]} 13. a3 {[%emt 0:00:05]} Be7 {[%emt 0:00:24]} 14. Bf4 {[%emt 0:00:24]} a6 {[%emt 0:01:12]} 15. Nc7 {[%emt 0:24:45]} Ra7 {[%emt 0:01:28]} 16. cxd5 {[%emt 0:02:30]} exd5 {[%emt 0:00:05]} 17. Rfd1 {[%emt 0:00:44]} Qc8 {[%emt 0:00:29]} 18. Rac1 {[%emt 0:03:16]} Bc5 {[%emt 0:02:27]} 19. Bxe4 {[%emt 0:04:07]} dxe4 {[%emt 0:00:06]} 20. b4 {[%emt 0:00:06]} g5 {[%emt 0:10:39]} 21. bxc5 {[%emt 0:10:05]} gxf4 {[%emt 0:00:07]} 22. cxb6 {[%emt 0:00:03]} Qh3 {[%emt 0:01:24]} 23. gxf4 {[%emt 0:03:51]} e3 {[%emt 0:01:12]} 24. f3 {[%emt 0:00:07]} Kh8 {[%emt 0:13:45]} 25. Qc3+ {[%emt 0:00:18]} f6 {[%emt 0:00:05]} 26. Rd8 {[%emt 0:00:05]} 1-0

[Event "WYCC U18 Open 2019"]
[Site "Mumbai"]
[Date "2019.10.12"]
[Round "11.7"]
[White "Bykov, Oleg"]
[Black "Om Kharola"]
[Result "1-0"]
[ECO "D35"]
[WhiteElo "2370"]
[BlackElo "2328"]
[Annotator "ChessBase"]
[PlyCount "51"]
[EventDate "2019.10.02"]
[EventType "swiss"]
[EventCountry "IND"]
[SourceTitle "playchess.com"]
[Source "ChessBase"]
[SourceQuality "1"]
[TimeControl "40/5400+30:1800+30"]

1. d4 d5 2. c4 e6 3. Nc3 Nf6 4. cxd5 exd5 5. Bg5 c6 6. e3 Nbd7 7. Bd3 Be7 8. Qc2 Nf8 9. O-O-O Ne6 10. Bxf6 Bxf6 11. f4 g6 12. f5 Ng7 13. g4 Bg5 14. Kb1 O-O 15. e4 dxe4 16. Bxe4 Qf6 17. h4 Be3 18. Nf3 gxf5 19. g5 Qd6 20. Bd3 f6 21. Rhe1 Bf4 22. Bc4+ Kh8 23. d5 a6 24. dxc6 Qxc6 25. gxf6 Rxf6 26. Rd8+ 1-0

[Event "WYCC U18 Open 2019"]
[Site "Mumbai"]
[Date "2019.10.12"]
[Round "11.8"]
[White "Pultinevicius, Paulius"]
[Black "Aditya Mittal"]
[Result "1-0"]
[ECO "A06"]
[WhiteElo "2503"]
[BlackElo "2430"]
[Annotator "ChessBase"]
[PlyCount "89"]
[EventDate "2019.10.02"]
[EventType "swiss"]
[EventCountry "IND"]
[SourceTitle "playchess.com"]
[Source "ChessBase"]
[SourceQuality "1"]
[TimeControl "40/5400+30:1800+30"]

1. Nf3 {[%emt 0:00:00]} d5 {[%emt 0:00:00]} 2. g3 {[%emt 0:00:00]} Nf6 {[%emt 0:00:00]} 3. Bg2 {[%emt 0:00:00]} c5 {[%emt 0:00:06]} 4. O-O {[%emt 0:00:10]} e6 {[%emt 0:00:05]} 5. c4 {[%emt 0:00:48]} d4 {[%emt 0:00:08]} 6. d3 {[%emt 0:00:31]} Nc6 {[%emt 0:01:06]} 7. e3 {[%emt 0:00:07]} Be7 {[%emt 0:08:20]} 8. exd4 {[%emt 0:01:08]} cxd4 {[%emt 0:00:09]} 9. Bg5 {[%emt 0:02:00]} O-O {[%emt 0:06:07]} 10. Na3 {[%emt 0:02:13]} h6 {[%emt 0:05:59]} 11. Bxf6 {[%emt 0:00:24]} Bxf6 {[%emt 0:00:02]} 12. Nc2 {[%emt 0:00:46]} a5 {[%emt 0:00:05]} 13. Nd2 {[%emt 0:03:24]} Bd7 {[%emt 0:04:53]} 14. Re1 {[%emt 0:02:58]} Rb8 {[%emt 0:02:15]} 15. Rc1 {[%emt 0:04:47]} Qb6 {[%emt 0:04:25]} 16. Rb1 {[%emt 0:10:47]} Nb4 {[%emt 0:05:24]} 17. Nxb4 {[%emt 0:06:33]} axb4 {[%emt 0:00:10]} 18. a3 {[%emt 0:00:07]} Be7 {[%emt 0:11:31]} 19. Nf3 {[%emt 0:00:13]} Bc6 {[%emt 0:08:38]} 20. Ne5 {[%emt 0:04:03]} Bxg2 {[%emt 0:01:20]} 21. Kxg2 {[%emt 0:00:05]} bxa3 {[%emt 0:00:32]} 22. bxa3 {[%emt 0:00:33]} Qc7 {[%emt 0:00:10]} 23. a4 {[%emt 0:01:14]} Bd6 {[%emt 0:06:26]} 24. Rb5 {[%emt 0:02:05]} Ra8 {[%emt 0:00:15]} 25. Nf3 {[%emt 0:04:08]} Bc5 {[%emt 0:01:33]} 26. Re4 {[%emt 0:04:13]} Rfd8 {[%emt 0:01:47]} 27. g4 {[%emt 0:01:11]} f5 {[%emt 0:12:13]} 28. Rxe6 {[%emt 0:03:10]} fxg4 {[%emt 0:00:25]} 29. Nd2 {[%emt 0:05:54]} h5 {[%emt 0:05:36]} 30. Ne4 {[%emt 0:03:54]} b6 {[%emt 0:00:04]} 31. h3 {[%emt 0:21:34]} Qf4 {[%emt 0:06:19]} 32. hxg4 {[%emt 0:01:18]} hxg4 {[%emt 0:00:38]} 33. Rg6 {[%emt 0:03:15]} Qf3+ {[%emt 0:01:10]} 34. Qxf3 {[%emt 0:00:05]} gxf3+ {[%emt 0:00:03]} 35. Kg3 {[%emt 0:01:25]} Kh7 {[%emt 0:05:13]} 36. Rg4 {[%emt 0:03:02]} Rxa4 {[%emt 0:00:32]} 37. Nxc5 {[%emt 0:00:24]} bxc5 {[%emt 0:00:03]} 38. Rxc5 {[%emt 0:01:20]} Ra2 {[%emt 0:03:47]} 39. Rc7 {[%emt 0:00:43]} Rd2 {[%emt 0:00:54]} 40. Rcxg7+ {[%emt 0:00:14]} Kh6 {[%emt 0:00:51]} 41. R7g6+ {[%emt 0:30:05]} Kh7 {[%emt 0:30:08]} 42. R6g5 {[%emt 0:00:05]} Rd6 {[%emt 0:00:00]} 43. Rh5+ {[%emt 0:00:00]} Rh6 {[%emt 0:00:00]} 44. Rxh6+ {[%emt 0:00:00]} Kxh6 {[%emt 0:00:00]} 45. Rxd4 {[%emt 0:00:00]} 1-0

[Event "WYCC U18 Open 2019"]
[Site "Mumbai"]
[Date "2019.10.12"]
[Round "11.9"]
[White "Zhalmakhanov, Ramazan"]
[Black "Gumularz, Szymon"]
[Result "1/2-1/2"]
[ECO "C88"]
[WhiteElo "2374"]
[BlackElo "2505"]
[Annotator "ChessBase"]
[PlyCount "68"]
[EventDate "2019.10.02"]
[EventType "swiss"]
[EventCountry "IND"]
[SourceTitle "playchess.com"]
[Source "ChessBase"]
[SourceQuality "1"]
[TimeControl "40/5400+30:1800+30"]

1. e4 {[%emt 0:00:00]} e5 {[%emt 0:00:17]} 2. Nf3 {[%emt 0:00:00]} Nc6 {[%emt 0:00:04]} 3. Bb5 {[%emt 0:00:00]} a6 {[%emt 0:00:08]} 4. Ba4 {[%emt 0:00:00]} Nf6 {[%emt 0:00:11]} 5. O-O {[%emt 0:00:04]} Be7 {[%emt 0:00:09]} 6. Re1 {[%emt 0:00:07]} b5 {[%emt 0:00:08]} 7. Bb3 {[%emt 0:00:06]} O-O {[%emt 0:00:11]} 8. a4 {[%emt 0:00:36]} b4 {[%emt 0:04:11]} 9. d3 {[%emt 0:00:08]} d6 {[%emt 0:00:49]} 10. Nbd2 {[%emt 0:00:16]} h6 {[%emt 0:04:50]} 11. h3 {[%emt 0:01:42]} Na5 {[%emt 0:25:49]} 12. Ba2 {[%emt 0:00:12]} c5 {[%emt 0:00:24]} 13. c3 {[%emt 0:02:31]} Rb8 {[%emt 0:05:16]} 14. d4 {[%emt 0:04:44]} cxd4 {[%emt 0:16:45]} 15. cxd4 {[%emt 0:00:06]} Qc7 {[%emt 0:00:07]} 16. Nf1 {[%emt 0:16:08]} b3 {[%emt 0:04:04]} 17. Bb1 {[%emt 0:00:06]} Bd7 {[%emt 0:01:48]} 18. Bd2 {[%emt 0:06:03]} exd4 {[%emt 0:11:25]} 19. Nxd4 {[%emt 0:00:28]} Nc4 {[%emt 0:00:16]} 20. Bc3 {[%emt 0:00:49]} Nb6 {[%emt 0:00:55]} 21. Nxb3 {[%emt 0:03:40]} Nxa4 {[%emt 0:03:11]} 22. Bd4 {[%emt 0:00:06]} Be6 {[%emt 0:01:31]} 23. Bc2 {[%emt 0:06:35]} Rb4 {[%emt 0:00:38]} 24. Ne3 {[%emt 0:12:05]} Rfb8 {[%emt 0:08:07]} 25. Ra3 {[%emt 0:14:26]} Nd7 {[%emt 0:03:12]} 26. Qa1 {[%emt 0:09:32]} Bg5 {[%emt 0:06:43]} 27. Rxa4 {[%emt 0:10:25]} Rxa4 {[%emt 0:00:42]} 28. Qxa4 {[%emt 0:00:01]} Bxe3 {[%emt 0:00:08]} 29. Bxe3 {[%emt 0:00:08]} Qxc2 {[%emt 0:00:05]} 30. Nc5 {[%emt 0:00:03]} Qxa4 {[%emt 0:00:50]} 31. Nxa4 {[%emt 0:00:01]} Rb4 {[%emt 0:00:07]} 32. Ra1 {[%emt 0:00:08]} Rxe4 {[%emt 0:01:10]} 33. Nc3 {[%emt 0:00:05]} Rb4 {[%emt 0:00:04]} 34. Rxa6 {[%emt 0:00:04]} Rxb2 {[%emt 0:00:04]} 1/2-1/2

[Event "WYCC U18 Open 2019"]
[Site "Mumbai"]
[Date "2019.10.12"]
[Round "11.10"]
[White "Sydoryka, Vladyslav"]
[Black "Raghunandan, Kaumandur Srihari"]
[Result "1/2-1/2"]
[ECO "A20"]
[WhiteElo "2247"]
[BlackElo "2449"]
[Annotator "ChessBase"]
[PlyCount "78"]
[EventDate "2019.10.02"]
[EventType "swiss"]
[EventCountry "IND"]
[SourceTitle "playchess.com"]
[Source "ChessBase"]
[SourceQuality "1"]
[TimeControl "40/5400+30:1800+30"]

1. c4 {[%emt 0:00:00]} e5 {[%emt 0:00:31]} 2. g3 {[%emt 0:00:00]} Nc6 {[%emt 0:00:33]} 3. Bg2 {[%emt 0:00:00]} h5 {[%emt 0:00:15]} 4. h4 {[%emt 0:01:07]} Bc5 {[%emt 0:00:27]} 5. Nc3 {[%emt 0:00:25]} a6 {[%emt 0:00:21]} 6. e3 {[%emt 0:00:39]} d6 {[%emt 0:00:16]} 7. Nge2 {[%emt 0:00:48]} Bg4 {[%emt 0:01:17]} 8. a3 {[%emt 0:00:54]} Nge7 {[%emt 0:01:55]} 9. f3 {[%emt 0:02:22]} Bf5 {[%emt 0:00:23]} 10. d4 {[%emt 0:00:08]} Ba7 {[%emt 0:00:17]} 11. b4 {[%emt 0:07:59]} Bg6 {[%emt 0:06:52]} 12. d5 {[%emt 0:08:36]} Nb8 {[%emt 0:00:10]} 13. e4 {[%emt 0:03:48]} c6 {[%emt 0:04:05]} 14. f4 {[%emt 0:05:52]} cxd5 {[%emt 0:09:27]} 15. f5 {[%emt 0:21:10]} Bh7 {[%emt 0:00:49]} 16. cxd5 {[%emt 0:04:10]} Nd7 {[%emt 0:06:36]} 17. Rf1 {[%emt 0:02:47]} Nf6 {[%emt 0:16:02]} 18. Bf3 {[%emt 0:01:56]} Rc8 {[%emt 0:07:40]} 19. Qd3 {[%emt 0:03:18]} Qd7 {[%emt 0:03:45]} 20. Bg5 {[%emt 0:02:12]} Ng4 {[%emt 0:01:26]} 21. Bxg4 {[%emt 0:01:05]} hxg4 {[%emt 0:00:08]} 22. Be3 {[%emt 0:10:59]} Bxe3 {[%emt 0:04:20]} 23. Qxe3 {[%emt 0:00:09]} Ng8 {[%emt 0:00:06]} 24. Qg5 {[%emt 0:01:11]} Nf6 {[%emt 0:00:06]} 25. Qxg7 {[%emt 0:00:48]} Ke7 {[%emt 0:00:07]} 26. Qg5 {[%emt 0:00:03]} Rc4 {[%emt 0:02:22]} 27. Rc1 {[%emt 0:04:40]} Rhc8 {[%emt 0:00:55]} 28. Kf2 {[%emt 0:01:02]} Qd8 {[%emt 0:08:38]} 29. Qe3 {[%emt 0:02:14]} R8c7 {[%emt 0:03:33]} 30. Kg2 {[%emt 0:00:48]} Qc8 {[%emt 0:00:23]} 31. Rfd1 {[%emt 0:02:14]} b5 {[%emt 0:00:31]} 32. Kh2 {[%emt 0:00:39]} Qb7 {[%emt 0:11:07]} 33. Kg2 {[%emt 0:00:26]} Qa7 {[%emt 0:01:06]} 34. Kf2 {[%emt 0:00:29]} Qxe3+ {[%emt 0:00:42]} 35. Kxe3 {[%emt 0:00:01]} Kd7 {[%emt 0:00:10]} 36. Rf1 {[%emt 0:05:40]} Kc8 {[%emt 0:00:36]} 37. Kd3 {[%emt 0:00:09]} Kb7 {[%emt 0:00:22]} 38. Rb1 {[%emt 0:00:24]} Rc8 {[%emt 0:01:34]} 39. Rb2 {[%emt 0:00:38]} R8c7 {[%emt 0:00:32]} 1/2-1/2